[Event "Titled Tuesday Blitz July 11 Late 2023"]
[White "Zemlyanskii, Ivan"]
[Black "Pinero Rodriguez, Carlos Jose"]
[WhiteFideId "24249971"]
[BlackFideId "3901726"]
[WhiteElo "2800"]
[BlackElo "2408"]
[Result "1-0"]
[Round "3"]
[TimeControl "180+2"]
[Date "2023.07.11"]
[WhiteClock "0:01:05"]
[BlackClock "0:01:06"]
[Board "39"]

1. d4 {[%clk 0:03:00]}  Nf6 {[%clk 0:02:59]} 2. c4 {[%clk 0:03:00]}  e6 {[%clk 0:02:59]} 3. Bf4 {[%clk 0:03:01]}  c5 {[%clk 0:02:55]} 4. d5 {[%clk 0:03:01]}  exd5 {[%clk 0:02:55]} 5. cxd5 {[%clk 0:03:02]}  d6 {[%clk 0:02:55]} 6. e4 {[%clk 0:03:02]}  Be7 {[%clk 0:02:56]} 7. Nc3 {[%clk 0:03:01]}  O-O {[%clk 0:02:57]} 8. h3 {[%clk 0:03:00]}  Re8 {[%clk 0:02:57]} 9. Nf3 {[%clk 0:02:56]}  Na6 {[%clk 0:02:54]} 10. Be2 {[%clk 0:02:51]}  Nc7 {[%clk 0:02:54]} 11. a4 {[%clk 0:02:50]}  Rb8 {[%clk 0:02:53]} 12. O-O {[%clk 0:02:48]}  a6 {[%clk 0:02:53]} 13. a5 {[%clk 0:02:48]}  b5 {[%clk 0:02:53]} 14. axb6 {[%clk 0:02:48]}  Rxb6 {[%clk 0:02:54]} 15. Nd2 {[%clk 0:02:49]}  Rxb2 {[%clk 0:02:50]} 16. Nc4 {[%clk 0:02:49]}  Rb4 {[%clk 0:02:50]} 17. Qd3 {[%clk 0:02:04]}  Nb5 {[%clk 0:02:45]} 18. Bf3 {[%clk 0:01:51]}  Bf8 {[%clk 0:02:14]} 19. Na2 {[%clk 0:01:45]}  Ra4 {[%clk 0:01:51]} 20. Qc2 {[%clk 0:01:33]}  Rxa2 {[%clk 0:01:47]} 21. Rxa2 {[%clk 0:01:34]}  Nd4 {[%clk 0:01:47]} 22. Qd3 {[%clk 0:01:32]}  Nxf3+ {[%clk 0:01:46]} 23. gxf3 {[%clk 0:01:10]}  Bxh3 {[%clk 0:01:46]} 24. Rfa1 {[%clk 0:01:09]}  Nh5 {[%clk 0:01:40]} 25. Qe3 {[%clk 0:01:08]}  Qh4 {[%clk 0:01:24]} 26. Bg5 {[%clk 0:01:06]}  Qxg5+ {[%clk 0:01:09]} 27. Qxg5 {[%clk 0:01:06]}  Nf6 {[%clk 0:01:06]} 28. Rxa6 {[%clk 0:01:05]} 1-0


[Site "https://www.chess.com"]

[Event "Titled Tuesday Blitz July 11 Late 2023"]
[White "Svane, Frederik"]
[Black "StarkyNZ"]
[WhiteFideId "12923044"]
[WhiteElo "2796"]
[BlackElo "2298"]
[Result "1-0"]
[Round "3"]
[TimeControl "180+2"]
[Date "2023.07.11"]
[WhiteClock "0:01:02"]
[BlackClock "0:00:12"]
[Board "40"]

1. b3 {[%clk 0:02:57]}  d5 {[%clk 0:02:55]} 2. Bb2 {[%clk 0:02:57]}  Nd7 {[%clk 0:02:54]} 3. Nf3 {[%clk 0:02:58]}  Ngf6 {[%clk 0:02:54]} 4. e3 {[%clk 0:02:58]}  e6 {[%clk 0:02:53]} 5. c4 {[%clk 0:02:58]}  c6 {[%clk 0:02:53]} 6. d4 {[%clk 0:02:56]}  Bd6 {[%clk 0:02:54]} 7. Bd3 {[%clk 0:02:57]}  O-O {[%clk 0:02:54]} 8. Nbd2 {[%clk 0:02:54]}  Re8 {[%clk 0:02:48]} 9. Ne5 {[%clk 0:02:49]}  c5 {[%clk 0:02:46]} 10. O-O {[%clk 0:02:49]}  cxd4 {[%clk 0:02:46]} 11. exd4 {[%clk 0:02:49]}  Qc7 {[%clk 0:02:44]} 12. Re1 {[%clk 0:02:48]}  dxc4 {[%clk 0:02:41]} 13. bxc4 {[%clk 0:02:45]}  Bb4 {[%clk 0:02:35]} 14. Re3 {[%clk 0:02:40]}  Nf8 {[%clk 0:02:34]} 15. Ndf3 {[%clk 0:02:38]}  h6 {[%clk 0:02:16]} 16. Qa4 {[%clk 0:02:26]}  Qa5 {[%clk 0:02:07]} 17. Qb3 {[%clk 0:02:21]}  Bd7 {[%clk 0:01:40]} 18. Nxd7 {[%clk 0:02:12]}  N8xd7 {[%clk 0:01:35]} 19. h3 {[%clk 0:01:53]}  a6 {[%clk 0:01:14]} 20. Rc1 {[%clk 0:01:44]}  Rac8 {[%clk 0:01:09]} 21. c5 {[%clk 0:01:31]}  b6 {[%clk 0:01:04]} 22. a3 {[%clk 0:01:23]}  Bd2 {[%clk 0:00:19]} 23. Nxd2 {[%clk 0:01:23]}  Qxd2 {[%clk 0:00:20]} 24. Rd1 {[%clk 0:01:23]}  Qa5 {[%clk 0:00:20]} 25. Bc3 {[%clk 0:01:23]}  Nxc5 {[%clk 0:00:21]} 26. dxc5 {[%clk 0:01:23]}  Qxc5 {[%clk 0:00:22]} 27. Bxa6 {[%clk 0:01:21]}  Ra8 {[%clk 0:00:21]} 28. Bd4 {[%clk 0:01:10]}  Qh5 {[%clk 0:00:18]} 29. Be2 {[%clk 0:01:09]}  Qg6 {[%clk 0:00:16]} 30. Rg3 {[%clk 0:01:07]}  Qf5 {[%clk 0:00:15]} 31. Rf3 {[%clk 0:01:02]}  Qg5 {[%clk 0:00:12]} 32. Bxf6 {[%clk 0:01:02]}  gxf6 {[%clk 0:00:12]} 33. Rg3 {[%clk 0:01:02]} 1-0


[Site "https://www.chess.com"]

[Event "Titled Tuesday Blitz July 11 Late 2023"]
[White "Rowe, Duane"]
[Black "Kadric, Denis"]
[WhiteFideId "7400268"]
[BlackFideId "14403803"]
[WhiteElo "2278"]
[BlackElo "2792"]
[Result "0-1"]
[Round "3"]
[TimeControl "180+2"]
[Date "2023.07.11"]
[WhiteClock "0:00:44"]
[BlackClock "0:00:17"]
[Board "41"]

1. e4 {[%clk 0:03:00]}  d6 {[%clk 0:02:55]} 2. Nf3 {[%clk 0:03:00]}  Nf6 {[%clk 0:02:55]} 3. Nc3 {[%clk 0:03:00]}  e5 {[%clk 0:02:56]} 4. Bc4 {[%clk 0:02:59]}  Be7 {[%clk 0:02:55]} 5. d4 {[%clk 0:02:59]}  Nbd7 {[%clk 0:02:55]} 6. b3 {[%clk 0:02:57]}  O-O {[%clk 0:02:53]} 7. O-O {[%clk 0:02:56]}  c6 {[%clk 0:02:54]} 8. a4 {[%clk 0:02:54]}  exd4 {[%clk 0:02:47]} 9. Qxd4 {[%clk 0:02:49]}  Re8 {[%clk 0:02:47]} 10. Be3 {[%clk 0:02:45]}  Qc7 {[%clk 0:02:37]} 11. Bf4 {[%clk 0:02:40]}  Nh5 {[%clk 0:02:34]} 12. e5 {[%clk 0:02:31]}  Nxf4 {[%clk 0:02:28]} 13. Qxf4 {[%clk 0:02:28]}  d5 {[%clk 0:02:29]} 14. Bd3 {[%clk 0:02:26]}  Bf6 {[%clk 0:02:12]} 15. Rae1 {[%clk 0:02:13]}  Nxe5 {[%clk 0:02:07]} 16. Ne2 {[%clk 0:01:56]}  Nxf3+ {[%clk 0:01:44]} 17. Qxf3 {[%clk 0:01:54]}  Bd7 {[%clk 0:01:44]} 18. Ng3 {[%clk 0:01:54]}  Qd6 {[%clk 0:00:51]} 19. Nf5 {[%clk 0:01:43]}  Bxf5 {[%clk 0:00:48]} 20. Qxf5 {[%clk 0:01:41]}  g6 {[%clk 0:00:49]} 21. Qf3 {[%clk 0:01:13]}  Be5 {[%clk 0:00:48]} 22. g3 {[%clk 0:01:13]}  Re6 {[%clk 0:00:49]} 23. Qg4 {[%clk 0:01:03]}  Rae8 {[%clk 0:00:45]} 24. Kg2 {[%clk 0:00:53]}  Kg7 {[%clk 0:00:42]} 25. f4 {[%clk 0:00:49]}  Bf6 {[%clk 0:00:19]} 26. Rxe6 {[%clk 0:00:47]}  Qxe6 {[%clk 0:00:17]} 27. Qxe6 {[%clk 0:00:44]} 0-1


[Site "https://www.chess.com"]

[Event "Titled Tuesday Blitz July 11 Late 2023"]
[White "Licznerski, Lukasz"]
[Black "gordonzyxu"]
[WhiteFideId "1179250"]
[WhiteElo "2792"]
[BlackElo "1960"]
[Result "1-0"]
[Round "3"]
[TimeControl "180+2"]
[Date "2023.07.11"]
[WhiteClock "0:00:05"]
[BlackClock "0:00:00"]
[Board "42"]

1. e4 {[%clk 0:03:00]}  e5 {[%clk 0:02:59]} 2. Nf3 {[%clk 0:03:00]}  Nf6 {[%clk 0:02:59]} 3. d4 {[%clk 0:03:00]}  Nxe4 {[%clk 0:02:58]} 4. Bd3 {[%clk 0:03:00]}  Nc6 {[%clk 0:02:59]} 5. dxe5 {[%clk 0:02:44]}  Nc5 {[%clk 0:02:54]} 6. Bc4 {[%clk 0:02:40]}  d6 {[%clk 0:02:41]} 7. O-O {[%clk 0:02:29]}  Be6 {[%clk 0:02:25]} 8. Bxe6 {[%clk 0:02:26]}  Nxe6 {[%clk 0:02:26]} 9. exd6 {[%clk 0:02:17]}  Qxd6 {[%clk 0:02:19]} 10. Nc3 {[%clk 0:02:11]}  O-O-O {[%clk 0:02:15]} 11. Qxd6 {[%clk 0:02:09]}  Bxd6 {[%clk 0:02:15]} 12. Ne4 {[%clk 0:02:01]}  Ncd4 {[%clk 0:01:50]} 13. Nxd4 {[%clk 0:01:58]}  Nxd4 {[%clk 0:01:49]} 14. c3 {[%clk 0:01:59]}  Ne2+ {[%clk 0:01:47]} 15. Kh1 {[%clk 0:01:59]}  Rhe8 {[%clk 0:01:45]} 16. Nxd6+ {[%clk 0:01:49]}  Rxd6 {[%clk 0:01:44]} 17. Be3 {[%clk 0:01:49]}  f5 {[%clk 0:01:29]} 18. Rfe1 {[%clk 0:01:42]}  Rde6 {[%clk 0:01:22]} 19. Rxe2 {[%clk 0:01:38]}  f4 {[%clk 0:01:21]} 20. Rae1 {[%clk 0:01:38]}  fxe3 {[%clk 0:01:22]} 21. fxe3 {[%clk 0:01:28]}  Kd7 {[%clk 0:01:16]} 22. Kg1 {[%clk 0:01:00]}  Kc6 {[%clk 0:01:14]} 23. e4 {[%clk 0:00:59]}  Re5 {[%clk 0:01:07]} 24. Kf2 {[%clk 0:00:58]}  Rh5 {[%clk 0:01:00]} 25. Kg3 {[%clk 0:00:51]}  Ree5 {[%clk 0:00:53]} 26. h3 {[%clk 0:00:43]}  Re6 {[%clk 0:00:45]} 27. Rf1 {[%clk 0:00:41]}  Rg5+ {[%clk 0:00:43]} 28. Kf4 {[%clk 0:00:30]}  h6 {[%clk 0:00:42]} 29. e5 {[%clk 0:00:25]}  Re8 {[%clk 0:00:32]} 30. Rf3 {[%clk 0:00:25]}  Kd5 {[%clk 0:00:26]} 31. Rd3+ {[%clk 0:00:21]}  Ke6 {[%clk 0:00:26]} 32. g4 {[%clk 0:00:19]}  Rf8+ {[%clk 0:00:24]} 33. Kg3 {[%clk 0:00:20]}  Rf1 {[%clk 0:00:20]} 34. Kg2 {[%clk 0:00:14]}  Rf7 {[%clk 0:00:19]} 35. Rde3 {[%clk 0:00:12]}  h5 {[%clk 0:00:19]} 36. Kg3 {[%clk 0:00:11]}  hxg4 {[%clk 0:00:19]} 37. hxg4 {[%clk 0:00:11]}  Rf8 {[%clk 0:00:20]} 38. Kh4 {[%clk 0:00:10]}  Rg6 {[%clk 0:00:18]} 39. Rd2 {[%clk 0:00:08]}  Rh8+ {[%clk 0:00:18]} 40. Kg3 {[%clk 0:00:09]}  Rgh6 {[%clk 0:00:17]} 41. Red3 {[%clk 0:00:07]}  Rh3+ {[%clk 0:00:18]} 42. Kf4 {[%clk 0:00:07]}  Rxd3 {[%clk 0:00:16]} 43. Rxd3 {[%clk 0:00:08]}  Rf8+ {[%clk 0:00:16]} 44. Kg5 {[%clk 0:00:08]}  Rf7 {[%clk 0:00:15]} 45. Kg6 {[%clk 0:00:08]}  Re7 {[%clk 0:00:15]} 46. g5 {[%clk 0:00:08]}  c6 {[%clk 0:00:14]} 47. Rf3 {[%clk 0:00:07]}  Rd7 {[%clk 0:00:10]} 48. Rf2 {[%clk 0:00:06]}  Kxe5 {[%clk 0:00:09]} 49. Rf7 {[%clk 0:00:06]}  Rd6+ {[%clk 0:00:05]} 50. Kxg7 {[%clk 0:00:06]}  Rd2 {[%clk 0:00:04]} 51. Rxb7 {[%clk 0:00:05]}  Rg2 {[%clk 0:00:03]} 52. g6 {[%clk 0:00:06]}  a5 {[%clk 0:00:00]} 53. Kf7 {[%clk 0:00:05]} 1-0


[Site "https://www.chess.com"]

[Event "Titled Tuesday Blitz July 11 Late 2023"]
[White "Bluebaum, Matthias"]
[Black "Schwabeneder, Florian"]
[WhiteFideId "24651516"]
[BlackFideId "1626191"]
[WhiteElo "3046"]
[BlackElo "2663"]
[Result "1-0"]
[Round "3"]
[TimeControl "180+2"]
[Date "2023.07.11"]
[WhiteClock "0:00:45"]
[BlackClock "0:00:00"]
[Board "43"]

1. d4 {[%clk 0:03:00]}  Nf6 {[%clk 0:02:59]} 2. c4 {[%clk 0:03:01]}  g6 {[%clk 0:02:59]} 3. Nc3 {[%clk 0:03:01]}  Bg7 {[%clk 0:02:59]} 4. e4 {[%clk 0:03:02]}  d6 {[%clk 0:03:00]} 5. Nf3 {[%clk 0:03:02]}  Bg4 {[%clk 0:02:59]} 6. Be2 {[%clk 0:03:03]}  Bxf3 {[%clk 0:02:58]} 7. Bxf3 {[%clk 0:03:04]}  e5 {[%clk 0:02:58]} 8. d5 {[%clk 0:03:04]}  h5 {[%clk 0:02:58]} 9. h4 {[%clk 0:03:04]}  Nbd7 {[%clk 0:02:56]} 10. Bg5 {[%clk 0:03:00]}  Bh6 {[%clk 0:02:55]} 11. Bxh6 {[%clk 0:03:00]}  Rxh6 {[%clk 0:02:55]} 12. b4 {[%clk 0:03:01]}  Kf8 {[%clk 0:02:45]} 13. Qd2 {[%clk 0:02:57]}  Kg7 {[%clk 0:02:43]} 14. O-O {[%clk 0:02:57]}  Rh8 {[%clk 0:02:42]} 15. g3 {[%clk 0:02:55]}  Qe7 {[%clk 0:02:34]} 16. Na4 {[%clk 0:02:54]}  a5 {[%clk 0:02:25]} 17. a3 {[%clk 0:02:54]}  Rhc8 {[%clk 0:02:14]} 18. Rfc1 {[%clk 0:02:52]}  axb4 {[%clk 0:02:06]} 19. axb4 {[%clk 0:02:53]}  c6 {[%clk 0:02:06]} 20. dxc6 {[%clk 0:02:47]}  bxc6 {[%clk 0:02:04]} 21. Rd1 {[%clk 0:02:44]}  Rxa4 {[%clk 0:01:33]} 22. Rxa4 {[%clk 0:02:41]}  Nb6 {[%clk 0:01:33]} 23. Ra6 {[%clk 0:02:23]}  Nxc4 {[%clk 0:01:32]} 24. Qa2 {[%clk 0:02:24]}  d5 {[%clk 0:01:23]} 25. exd5 {[%clk 0:02:22]}  cxd5 {[%clk 0:01:22]} 26. Bxd5 {[%clk 0:02:23]}  Nxd5 {[%clk 0:01:05]} 27. Rxd5 {[%clk 0:02:24]}  Qxb4 {[%clk 0:01:05]} 28. Rd1 {[%clk 0:02:19]}  Nb2 {[%clk 0:00:42]} 29. Rb1 {[%clk 0:02:11]}  Rc2 {[%clk 0:00:40]} 30. Ra7 {[%clk 0:02:11]}  Rxf2 {[%clk 0:00:35]} 31. Qd5 {[%clk 0:01:01]}  Qb6 {[%clk 0:00:28]} 32. Rb7 {[%clk 0:01:01]}  Qe3 {[%clk 0:00:23]} 33. Rb3 {[%clk 0:01:00]}  Qa7 {[%clk 0:00:10]} 34. Qxe5+ {[%clk 0:00:47]}  Kh7 {[%clk 0:00:00]} 35. Qe3 {[%clk 0:00:45]} 1-0


[Site "https://www.chess.com"]

[Event "Titled Tuesday Blitz July 11 Late 2023"]
[White "Oparin, Grigoriy"]
[Black "Sadykov, Ramil"]
[WhiteFideId "24125890"]
[BlackFideId "24113590"]
[WhiteElo "2981"]
[BlackElo "2614"]
[Result "1-0"]
[Round "3"]
[TimeControl "180+2"]
[Date "2023.07.11"]
[WhiteClock "0:01:40"]
[BlackClock "0:00:07"]
[Board "45"]

1. d4 {[%clk 0:03:00]}  Nf6 {[%clk 0:02:52]} 2. c4 {[%clk 0:03:01]}  g6 {[%clk 0:02:47]} 3. Nc3 {[%clk 0:03:00]}  d5 {[%clk 0:02:47]} 4. cxd5 {[%clk 0:03:00]}  Nxd5 {[%clk 0:02:48]} 5. e4 {[%clk 0:03:01]}  Nxc3 {[%clk 0:02:47]} 6. bxc3 {[%clk 0:03:02]}  Bg7 {[%clk 0:02:47]} 7. Bc4 {[%clk 0:03:03]}  c5 {[%clk 0:02:45]} 8. Ne2 {[%clk 0:03:03]}  O-O {[%clk 0:02:45]} 9. O-O {[%clk 0:03:04]}  Nc6 {[%clk 0:02:42]} 10. Be3 {[%clk 0:03:04]}  Bg4 {[%clk 0:02:42]} 11. f3 {[%clk 0:03:04]}  cxd4 {[%clk 0:02:42]} 12. cxd4 {[%clk 0:02:59]}  Na5 {[%clk 0:02:42]} 13. Bd3 {[%clk 0:02:48]}  Be6 {[%clk 0:02:41]} 14. d5 {[%clk 0:02:41]}  Bxa1 {[%clk 0:02:42]} 15. Qxa1 {[%clk 0:02:41]}  f6 {[%clk 0:02:41]} 16. h4 {[%clk 0:02:40]}  Rc8 {[%clk 0:02:23]} 17. Qd4 {[%clk 0:02:26]}  Bd7 {[%clk 0:02:17]} 18. h5 {[%clk 0:02:17]}  g5 {[%clk 0:01:55]} 19. e5 {[%clk 0:02:11]}  b6 {[%clk 0:01:37]} 20. e6 {[%clk 0:02:00]}  Be8 {[%clk 0:01:27]} 21. Ng3 {[%clk 0:01:49]}  Rc5 {[%clk 0:00:21]} 22. Qe4 {[%clk 0:01:40]}  f5 {[%clk 0:00:19]} 23. Nxf5 {[%clk 0:01:41]}  Bg6 {[%clk 0:00:11]} 24. hxg6 {[%clk 0:01:39]}  Rxd5 {[%clk 0:00:11]} 25. Qxd5 {[%clk 0:01:39]}  Qxd5 {[%clk 0:00:10]} 26. Nxe7+ {[%clk 0:01:40]}  Kg7 {[%clk 0:00:07]} 27. Nxd5 {[%clk 0:01:40]} 1-0


[Site "https://www.chess.com"]

[Event "Titled Tuesday Blitz July 11 Late 2023"]
[White "Garcia Ramos, Daniel"]
[Black "Pranav, V"]
[WhiteFideId "32010311"]
[BlackFideId "25060783"]
[WhiteElo "2610"]
[BlackElo "2948"]
[Result "0-1"]
[Round "3"]
[TimeControl "180+2"]
[Date "2023.07.11"]
[WhiteClock "0:00:06"]
[BlackClock "0:01:52"]
[Board "46"]

1. d4 {[%clk 0:02:59]}  Nf6 {[%clk 0:02:59]} 2. Bg5 {[%clk 0:02:54]}  Ne4 {[%clk 0:02:59]} 3. Bf4 {[%clk 0:02:52]}  c5 {[%clk 0:03:00]} 4. f3 {[%clk 0:02:46]}  Qa5+ {[%clk 0:03:00]} 5. c3 {[%clk 0:02:45]}  Nf6 {[%clk 0:03:00]} 6. d5 {[%clk 0:02:44]}  Qb6 {[%clk 0:03:00]} 7. Bc1 {[%clk 0:02:35]}  e6 {[%clk 0:02:59]} 8. e4 {[%clk 0:02:23]}  exd5 {[%clk 0:02:53]} 9. exd5 {[%clk 0:02:21]}  Bd6 {[%clk 0:02:53]} 10. Na3 {[%clk 0:02:14]}  O-O {[%clk 0:02:48]} 11. Nc4 {[%clk 0:02:09]}  Qc7 {[%clk 0:02:47]} 12. a4 {[%clk 0:02:07]}  b6 {[%clk 0:02:44]} 13. g3 {[%clk 0:01:48]}  Bb7 {[%clk 0:02:32]} 14. Ne3 {[%clk 0:01:41]}  Re8 {[%clk 0:02:29]} 15. Kf2 {[%clk 0:01:41]}  c4 {[%clk 0:02:25]} 16. Nxc4 {[%clk 0:01:05]}  Bc5+ {[%clk 0:02:22]} 17. Kg2 {[%clk 0:01:04]}  Bxd5 {[%clk 0:02:19]} 18. Bf4 {[%clk 0:01:02]}  d6 {[%clk 0:02:02]} 19. Qd3 {[%clk 0:00:50]}  Nc6 {[%clk 0:01:57]} 20. b4 {[%clk 0:00:48]}  Bxg1 {[%clk 0:01:53]} 21. Rxg1 {[%clk 0:00:49]}  Ne5 {[%clk 0:01:53]} 22. Bxe5 {[%clk 0:00:32]}  dxe5 {[%clk 0:01:54]} 23. Nd2 {[%clk 0:00:17]}  Rad8 {[%clk 0:01:53]} 24. Qe3 {[%clk 0:00:11]}  e4 {[%clk 0:01:52]} 25. f4 {[%clk 0:00:06]}  Ng4 {[%clk 0:01:52]} 0-1


[Site "https://www.chess.com"]

[Event "Titled Tuesday Blitz July 11 Late 2023"]
[White "Keleberda, Tymur"]
[Black "carokannlover213"]
[WhiteFideId "14174294"]
[WhiteElo "2534"]
[BlackElo "2788"]
[Result "1-0"]
[Round "3"]
[TimeControl "180+2"]
[Date "2023.07.11"]
[WhiteClock "0:00:35"]
[BlackClock "0:00:14"]
[Board "49"]

1. e4 {[%clk 0:02:51]}  c5 {[%clk 0:02:59]} 2. Nf3 {[%clk 0:02:51]}  d6 {[%clk 0:02:59]} 3. c3 {[%clk 0:02:51]}  Nf6 {[%clk 0:02:59]} 4. h3 {[%clk 0:02:51]}  Nc6 {[%clk 0:02:59]} 5. Bd3 {[%clk 0:02:51]}  e5 {[%clk 0:03:00]} 6. Bc2 {[%clk 0:02:51]}  g6 {[%clk 0:02:50]} 7. d4 {[%clk 0:02:47]}  cxd4 {[%clk 0:02:50]} 8. cxd4 {[%clk 0:02:48]}  exd4 {[%clk 0:02:50]} 9. Nxd4 {[%clk 0:02:48]}  Bg7 {[%clk 0:02:50]} 10. Nc3 {[%clk 0:02:44]}  O-O {[%clk 0:02:50]} 11. Nf3 {[%clk 0:02:42]}  d5 {[%clk 0:02:34]} 12. exd5 {[%clk 0:02:41]}  Re8+ {[%clk 0:02:34]} 13. Be3 {[%clk 0:02:41]}  Nb4 {[%clk 0:02:34]} 14. Bb3 {[%clk 0:02:27]}  Ne4 {[%clk 0:01:45]} 15. Nxe4 {[%clk 0:01:50]}  Rxe4 {[%clk 0:01:46]} 16. O-O {[%clk 0:01:32]}  Bxb2 {[%clk 0:01:44]} 17. Rb1 {[%clk 0:01:32]}  Bf6 {[%clk 0:01:45]} 18. a3 {[%clk 0:01:19]}  Na6 {[%clk 0:01:36]} 19. d6 {[%clk 0:01:18]}  Rxe3 {[%clk 0:00:43]} 20. fxe3 {[%clk 0:01:17]}  Nc5 {[%clk 0:00:44]} 21. Bxf7+ {[%clk 0:01:00]}  Kxf7 {[%clk 0:00:38]} 22. Qd5+ {[%clk 0:01:00]}  Kg7 {[%clk 0:00:23]} 23. Qxc5 {[%clk 0:00:59]}  b6 {[%clk 0:00:22]} 24. Qc7+ {[%clk 0:00:39]}  Qxc7 {[%clk 0:00:21]} 25. dxc7 {[%clk 0:00:40]}  Bf5 {[%clk 0:00:21]} 26. Rbc1 {[%clk 0:00:39]}  Bb2 {[%clk 0:00:19]} 27. Rc4 {[%clk 0:00:39]}  Bd3 {[%clk 0:00:15]} 28. c8=Q {[%clk 0:00:37]}  Rxc8 {[%clk 0:00:15]} 29. Rxc8 {[%clk 0:00:38]}  Bxf1 {[%clk 0:00:15]} 30. Kxf1 {[%clk 0:00:39]}  a5 {[%clk 0:00:16]} 31. a4 {[%clk 0:00:39]}  Ba3 {[%clk 0:00:15]} 32. Rc6 {[%clk 0:00:37]}  Bc5 {[%clk 0:00:16]} 33. Ke2 {[%clk 0:00:35]}  Kf7 {[%clk 0:00:14]} 34. Kd3 {[%clk 0:00:35]} 1-0


[Site "https://www.chess.com"]

[Event "Titled Tuesday Blitz July 11 Late 2023"]
[White "Martinez Reyes, Pedro Ramon"]
[Black "Leitao, Rafael"]
[WhiteFideId "3901807"]
[BlackFideId "2101246"]
[WhiteElo "2505"]
[BlackElo "2754"]
[Result "0-1"]
[Round "3"]
[TimeControl "180+2"]
[Date "2023.07.11"]
[WhiteClock "0:00:06"]
[BlackClock "0:00:13"]
[Board "51"]

1. e4 {[%clk 0:03:00]}  e5 {[%clk 0:02:59]} 2. Nf3 {[%clk 0:03:00]}  Nc6 {[%clk 0:02:59]} 3. Nc3 {[%clk 0:03:01]}  Nf6 {[%clk 0:02:58]} 4. Be2 {[%clk 0:03:01]}  Bc5 {[%clk 0:02:55]} 5. Nxe5 {[%clk 0:03:00]}  Nxe5 {[%clk 0:02:49]} 6. d4 {[%clk 0:03:00]}  Bd6 {[%clk 0:02:50]} 7. dxe5 {[%clk 0:02:59]}  Bxe5 {[%clk 0:02:51]} 8. Nb5 {[%clk 0:03:00]}  a6 {[%clk 0:01:46]} 9. f4 {[%clk 0:02:59]}  axb5 {[%clk 0:01:33]} 10. fxe5 {[%clk 0:02:59]}  Nxe4 {[%clk 0:01:28]} 11. O-O {[%clk 0:02:54]}  O-O {[%clk 0:01:25]} 12. Qd5 {[%clk 0:01:53]}  Ng5 {[%clk 0:01:22]} 13. Qxb5 {[%clk 0:01:44]}  Ne6 {[%clk 0:01:22]} 14. Qd3 {[%clk 0:01:36]}  b6 {[%clk 0:01:16]} 15. Bf3 {[%clk 0:01:33]}  Ra5 {[%clk 0:01:13]} 16. Be4 {[%clk 0:01:29]}  Qh4 {[%clk 0:01:01]} 17. g3 {[%clk 0:01:21]}  Qh3 {[%clk 0:00:50]} 18. Bf5 {[%clk 0:01:02]}  Qh5 {[%clk 0:00:50]} 19. b4 {[%clk 0:00:52]}  Rxe5 {[%clk 0:00:46]} 20. Bb2 {[%clk 0:00:52]}  Re2 {[%clk 0:00:43]} 21. h4 {[%clk 0:00:30]}  Bb7 {[%clk 0:00:36]} 22. Rf2 {[%clk 0:00:25]}  Rxf2 {[%clk 0:00:36]} 23. Kxf2 {[%clk 0:00:26]}  Ba6 {[%clk 0:00:23]} 24. b5 {[%clk 0:00:12]}  Nc5 {[%clk 0:00:22]} 25. Bxh7+ {[%clk 0:00:05]}  Qxh7 {[%clk 0:00:21]} 26. Qxh7+ {[%clk 0:00:06]}  Kxh7 {[%clk 0:00:21]} 27. bxa6 {[%clk 0:00:06]}  Ra8 {[%clk 0:00:22]} 28. Rd1 {[%clk 0:00:06]}  Rxa6 {[%clk 0:00:21]} 29. a3 {[%clk 0:00:07]}  d6 {[%clk 0:00:21]} 30. Re1 {[%clk 0:00:07]}  Ra4 {[%clk 0:00:16]} 31. Re7 {[%clk 0:00:07]}  Rc4 {[%clk 0:00:16]} 32. c3 {[%clk 0:00:06]}  Kg6 {[%clk 0:00:15]} 33. Ke2 {[%clk 0:00:05]}  Kf6 {[%clk 0:00:14]} 34. Re8 {[%clk 0:00:05]}  Ne6 {[%clk 0:00:13]} 35. Kd3 {[%clk 0:00:05]}  d5 {[%clk 0:00:13]} 36. Ra8 {[%clk 0:00:04]}  Kf5 {[%clk 0:00:12]} 37. Rg8 {[%clk 0:00:04]}  g6 {[%clk 0:00:12]} 38. h5 {[%clk 0:00:04]}  gxh5 {[%clk 0:00:12]} 39. a4 {[%clk 0:00:04]}  Nc5+ {[%clk 0:00:12]} 40. Kd2 {[%clk 0:00:04]}  Nxa4 {[%clk 0:00:12]} 41. Ba1 {[%clk 0:00:04]}  Nc5 {[%clk 0:00:13]} 42. Rf8 {[%clk 0:00:04]}  Nb3+ {[%clk 0:00:13]} 43. Kd3 {[%clk 0:00:03]}  Nxa1 {[%clk 0:00:13]} 44. Rxf7+ {[%clk 0:00:04]}  Kg4 {[%clk 0:00:13]} 45. Rh7 {[%clk 0:00:04]}  Nb3 {[%clk 0:00:13]} 46. Kc2 {[%clk 0:00:04]}  Nc5 {[%clk 0:00:13]} 47. Kd2 {[%clk 0:00:04]}  Ne4+ {[%clk 0:00:13]} 48. Ke3 {[%clk 0:00:04]}  Rxc3+ {[%clk 0:00:14]} 49. Kd4 {[%clk 0:00:05]}  Rxg3 {[%clk 0:00:13]} 50. Rg7+ {[%clk 0:00:05]}  Ng5 {[%clk 0:00:12]} 51. Rxc7 {[%clk 0:00:05]}  h4 {[%clk 0:00:12]} 52. Rc1 {[%clk 0:00:04]}  h3 {[%clk 0:00:13]} 53. Ke5 {[%clk 0:00:04]}  h2 {[%clk 0:00:13]} 54. Rh1 {[%clk 0:00:05]}  Nf3+ {[%clk 0:00:13]} 55. Kd6 {[%clk 0:00:04]}  Rg1 {[%clk 0:00:13]} 56. Rxh2 {[%clk 0:00:05]}  Nxh2 {[%clk 0:00:13]} 57. Kxd5 {[%clk 0:00:06]} 0-1


[Site "https://www.chess.com"]

[Event "Titled Tuesday Blitz July 11 Late 2023"]
[White "Fajdetic, Hrvoje"]
[Black "Matinian, Nikita"]
[WhiteFideId "14501945"]
[BlackFideId "24129100"]
[WhiteElo "2340"]
[BlackElo "2690"]
[Result "0-1"]
[Round "3"]
[TimeControl "180+2"]
[Date "2023.07.11"]
[WhiteClock "0:00:00"]
[BlackClock "0:01:10"]
[Board "53"]

1. d4 {[%clk 0:02:56]}  Nf6 {[%clk 0:02:59]} 2. Bf4 {[%clk 0:02:55]}  g6 {[%clk 0:02:58]} 3. Nc3 {[%clk 0:02:55]}  d5 {[%clk 0:02:58]} 4. e3 {[%clk 0:02:55]}  c6 {[%clk 0:02:58]} 5. Qd2 {[%clk 0:02:54]}  b5 {[%clk 0:02:53]} 6. f3 {[%clk 0:02:48]}  Bg7 {[%clk 0:02:51]} 7. g4 {[%clk 0:02:27]}  Nbd7 {[%clk 0:02:47]} 8. h4 {[%clk 0:02:24]}  Nb6 {[%clk 0:02:44]} 9. h5 {[%clk 0:02:22]}  b4 {[%clk 0:02:44]} 10. Nd1 {[%clk 0:02:17]}  a5 {[%clk 0:02:41]} 11. hxg6 {[%clk 0:01:58]}  hxg6 {[%clk 0:02:38]} 12. Rxh8+ {[%clk 0:01:57]}  Bxh8 {[%clk 0:02:39]} 13. Nf2 {[%clk 0:01:52]}  Bg7 {[%clk 0:02:38]} 14. O-O-O {[%clk 0:01:48]}  Nc4 {[%clk 0:02:37]} 15. Bxc4 {[%clk 0:01:45]}  dxc4 {[%clk 0:02:38]} 16. e4 {[%clk 0:01:35]}  Qb6 {[%clk 0:02:37]} 17. Be3 {[%clk 0:01:26]}  Qb5 {[%clk 0:02:35]} 18. Ne2 {[%clk 0:01:06]}  Be6 {[%clk 0:02:12]} 19. c3 {[%clk 0:01:06]}  Rb8 {[%clk 0:02:05]} 20. Nf4 {[%clk 0:01:01]}  Nd7 {[%clk 0:01:50]} 21. Nxe6 {[%clk 0:00:41]}  fxe6 {[%clk 0:01:48]} 22. Rh1 {[%clk 0:00:34]}  bxc3 {[%clk 0:01:39]} 23. Qxc3 {[%clk 0:00:33]}  Nc5 {[%clk 0:01:30]} 24. Rh7 {[%clk 0:00:28]}  Na4 {[%clk 0:01:28]} 25. Qa3 {[%clk 0:00:21]}  c3 {[%clk 0:01:17]} 26. Rxg7 {[%clk 0:00:17]}  cxb2+ {[%clk 0:01:17]} 27. Kd2 {[%clk 0:00:02]}  Qb4+ {[%clk 0:01:11]} 28. Qxb4 {[%clk 0:00:02]}  Rxb4 {[%clk 0:01:11]} 29. Bg5 {[%clk 0:00:00]}  b1=Q {[%clk 0:01:10]} 0-1


[Site "https://www.chess.com"]